[Event "Early-Titled-Tuesday-Blitz-April-23-2024"]
[Site "Chess.com"]
[Date "2024.04.23"]
[Round "2"]
[White "h4parah5"]
[Black "SashaKuzhilniy"]
[Result "1-0"]
[WhiteElo "3033"]
[BlackElo "2643"]
[TimeControl "180+1"]
[EndTime "8:18:30 PDT"]
[Termination "h4parah5 won by resignation"]

1. Nf3 {[%clk 0:03:00.9]} 1... d5 {[%clk 0:02:58.2]} 2. b3 {[%clk 0:03:00.2]}
2... Nf6 {[%clk 0:02:57.4]} 3. Bb2 {[%clk 0:02:59.9]} 3... Bf5 {[%clk
0:02:53.8]} 4. Nh4 {[%clk 0:02:58.6]} 4... Bg4 {[%clk 0:02:47.1]} 5. h3 {[%clk
0:02:57.6]} 5... Bh5 {[%clk 0:02:47.5]} 6. g4 {[%clk 0:02:57]} 6... Bg6 {[%clk
0:02:48.1]} 7. e3 {[%clk 0:02:54.6]} 7... e6 {[%clk 0:02:45.1]} 8. Nxg6 {[%clk
0:02:52.3]} 8... hxg6 {[%clk 0:02:46]} 9. Bg2 {[%clk 0:02:52.2]} 9... c6 {[%clk
0:02:41.6]} 10. Qe2 {[%clk 0:02:43.5]} 10... Bd6 {[%clk 0:02:37.1]} 11. d3
{[%clk 0:02:34.6]} 11... Nbd7 {[%clk 0:02:31.9]} 12. Nd2 {[%clk 0:02:32.8]}
12... Qa5 {[%clk 0:02:18.7]} 13. a3 {[%clk 0:02:31.2]} 13... O-O-O {[%clk
0:02:16.5]} 14. c4 {[%clk 0:02:25.2]} 14... Kb8 {[%clk 0:02:11.4]} 15. b4 {[%clk
0:02:21.6]} 15... Qa4 {[%clk 0:02:09.5]} 16. g5 {[%clk 0:02:13.8]} 16... Ne8
{[%clk 0:01:57.5]} 17. Qd1 {[%clk 0:02:10.9]} 17... Qxd1+ {[%clk 0:01:48]} 18.
Rxd1 {[%clk 0:02:11.8]} 18... Be5 {[%clk 0:01:19]} 19. d4 {[%clk 0:02:08.5]}
19... Bc7 {[%clk 0:01:19.4]} 20. c5 {[%clk 0:02:07.6]} 20... e5 {[%clk
0:01:17.3]} 21. h4 {[%clk 0:02:02.6]} 21... exd4 {[%clk 0:01:15.7]} 22. exd4
{[%clk 0:02:00.2]} 22... Bf4 {[%clk 0:01:14.1]} 23. Nf3 {[%clk 0:01:53]} 23...
Nc7 {[%clk 0:01:12.6]} 24. Bh3 {[%clk 0:01:51]} 24... f5 {[%clk 0:00:54.9]} 25.
gxf6 {[%clk 0:01:42.3]} 25... Nxf6 {[%clk 0:00:54.9]} 26. Rg1 {[%clk 0:01:40.3]}
26... Rde8+ {[%clk 0:00:42.9]} 27. Kf1 {[%clk 0:01:39.5]} 27... Rh6 {[%clk
0:00:38]} 28. Rd3 {[%clk 0:01:16]} 28... Ne4 {[%clk 0:00:36.3]} 29. Rg4 {[%clk
0:01:08.1]} 29... Rf8 {[%clk 0:00:35.9]} 30. Kg2 {[%clk 0:00:53.5]} 30... Ne6
{[%clk 0:00:33.1]} 31. Rd1 {[%clk 0:00:51.9]} 31... Bc7 {[%clk 0:00:31.8]} 32.
Bc1 {[%clk 0:00:49.1]} 32... Nf4+ {[%clk 0:00:30.6]} 33. Bxf4 {[%clk 0:00:48.5]}
33... Rxf4 {[%clk 0:00:26]} 34. Re1 {[%clk 0:00:43.4]} 34... Rxg4+ {[%clk
0:00:21.2]} 35. Bxg4 {[%clk 0:00:44.3]} 35... Bf4 {[%clk 0:00:21.5]} 36. Rh1
{[%clk 0:00:34.6]} 36... Kc7 {[%clk 0:00:20.6]} 37. Ng1 {[%clk 0:00:31.1]} 37...
g5 {[%clk 0:00:16.8]} 38. Ne2 {[%clk 0:00:30.9]} 38... Kd8 {[%clk 0:00:10.5]}
39. Nxf4 {[%clk 0:00:28.1]} 39... gxf4 {[%clk 0:00:11.4]} 40. Kf3 {[%clk
0:00:28.3]} 40... Rf6 {[%clk 0:00:12.1]} 41. h5 {[%clk 0:00:27.4]} 41... Nd2+
{[%clk 0:00:12.2]} 42. Ke2 {[%clk 0:00:26.8]} 42... Ne4 {[%clk 0:00:07.9]} 43.
Rh3 {[%clk 0:00:25.9]} 43... Ng5 {[%clk 0:00:06.3]} 44. Rh4 {[%clk 0:00:24]}
44... f3+ {[%clk 0:00:06.2]} 45. Ke3 {[%clk 0:00:23.3]} 45... Ne4 {[%clk
0:00:05]} 46. Bxf3 {[%clk 0:00:22.6]} 46... Nd2 {[%clk 0:00:05.4]} 47. Be2
{[%clk 0:00:19.3]} 47... Nb1 {[%clk 0:00:05.2]} 48. f4 {[%clk 0:00:17.7]} 48...
Nxa3 {[%clk 0:00:05.1]} 49. Bd3 {[%clk 0:00:17.5]} 49... b5 {[%clk 0:00:04]} 50.
Rg4 {[%clk 0:00:17.1]} 50... Rf7 {[%clk 0:00:04.4]} 51. Rg6 {[%clk 0:00:17.3]}
51... Re7+ {[%clk 0:00:04.6]} 52. Kd2 {[%clk 0:00:16.8]} 52... Nc4+ {[%clk
0:00:05.1]} 53. Bxc4 {[%clk 0:00:16.9]} 53... bxc4 {[%clk 0:00:05.3]} 54. Rxc6
{[%clk 0:00:17.7]} 54... Re4 {[%clk 0:00:05.6]} 55. Rd6+ {[%clk 0:00:18]} 55...
Kc7 {[%clk 0:00:05.9]} 56. Rxd5 {[%clk 0:00:18.9]} 56... Rxf4 {[%clk 0:00:06.5]}
57. Kc3 {[%clk 0:00:17.6]} 57... Kc6 {[%clk 0:00:06.1]} 58. Kxc4 {[%clk
0:00:17.7]} 1-0

[Event "Early-Titled-Tuesday-Blitz-April-23-2024"]
[Site "Chess.com"]
[Date "2024.04.23"]
[Round "2"]
[White "OparinGrigoriy"]
[Black "ravengelic"]
[Result "1-0"]
[WhiteElo "2984"]
[BlackElo "2640"]
[TimeControl "180+1"]
[EndTime "8:18:30 PDT"]
[Termination "OparinGrigoriy won by resignation"]

1. Nc3 {[%clk 0:02:59.1]} 1... Nf6 {[%clk 0:02:59.6]} 2. Nf3 {[%clk 0:02:59.4]}
2... d5 {[%clk 0:03:00.2]} 3. d4 {[%clk 0:02:59.2]} 3... c6 {[%clk 0:03:00.6]}
4. Bf4 {[%clk 0:02:59.6]} 4... Bf5 {[%clk 0:03:00.8]} 5. e3 {[%clk 0:03:00.1]}
5... e6 {[%clk 0:03:01.3]} 6. Bd3 {[%clk 0:03:00.5]} 6... Bg6 {[%clk 0:03:01.7]}
7. Ne5 {[%clk 0:02:59]} 7... Bxd3 {[%clk 0:03:01.5]} 8. cxd3 {[%clk 0:02:58.6]}
8... Nbd7 {[%clk 0:03:02.2]} 9. Qb3 {[%clk 0:02:58.8]} 9... Qb6 {[%clk 0:03:02]}
10. h3 {[%clk 0:02:57.9]} 10... Nxe5 {[%clk 0:03:02.1]} 11. dxe5 {[%clk
0:02:57.7]} 11... Nd7 {[%clk 0:03:02.4]} 12. Qc2 {[%clk 0:02:57.8]} 12... Qa6
{[%clk 0:03:02.1]} 13. O-O {[%clk 0:02:57.9]} 13... Be7 {[%clk 0:03:02.2]} 14.
Bh2 {[%clk 0:02:57.5]} 14... O-O {[%clk 0:03:01.9]} 15. e4 {[%clk 0:02:49.8]}
15... Bb4 {[%clk 0:03:00.3]} 16. Ne2 {[%clk 0:02:48.8]} 16... dxe4 {[%clk
0:02:59.2]} 17. dxe4 {[%clk 0:02:49.7]} 17... Rfd8 {[%clk 0:02:55.1]} 18. a3
{[%clk 0:02:48.6]} 18... Be7 {[%clk 0:02:54.5]} 19. Rad1 {[%clk 0:02:48.8]}
19... Nc5 {[%clk 0:02:52.5]} 20. Nf4 {[%clk 0:02:46.7]} 20... Qa4 {[%clk
0:02:45.7]} 21. Qe2 {[%clk 0:02:22.5]} 21... Qxe4 {[%clk 0:02:44.1]} 22. Qg4
{[%clk 0:02:22.7]} 22... Qf5 {[%clk 0:02:19.2]} 23. Qe2 {[%clk 0:02:21.3]} 23...
Qe4 {[%clk 0:02:15]} 24. Qg4 {[%clk 0:02:21.1]} 24... Qf5 {[%clk 0:02:13.4]} 25.
Qf3 {[%clk 0:02:09.4]} 25... Qe4 {[%clk 0:02:11.3]} 26. Qc3 {[%clk 0:02:08.4]}
26... Na4 {[%clk 0:01:49]} 27. Qb3 {[%clk 0:02:06.5]} 27... Nc5 {[%clk
0:01:49.6]} 28. Qc3 {[%clk 0:02:05.7]} 28... Na4 {[%clk 0:01:49.7]} 29. Rxd8+
{[%clk 0:02:01.6]} 29... Rxd8 {[%clk 0:01:49.3]} 30. Qa5 {[%clk 0:02:01.8]}
30... a6 {[%clk 0:01:40.7]} 31. Qc7 {[%clk 0:02:00.5]} 31... Bg5 {[%clk
0:01:25.8]} 32. Nh5 {[%clk 0:02:00.2]} 32... Nxb2 {[%clk 0:01:17.5]} 33. Nf6+
{[%clk 0:01:59.1]} 33... Bxf6 {[%clk 0:01:13.9]} 34. exf6 {[%clk 0:01:59.4]}
34... Qd5 {[%clk 0:01:11]} 35. Qxb7 {[%clk 0:01:56.5]} 35... Nd1 {[%clk
0:00:55.3]} 36. fxg7 {[%clk 0:01:54.2]} 36... Nc3 {[%clk 0:00:53.8]} 37. Qxa6
{[%clk 0:01:53.7]} 37... Qb5 {[%clk 0:00:51.5]} 38. Qxb5 {[%clk 0:01:49.6]}
38... cxb5 {[%clk 0:00:52.4]} 39. Be5 {[%clk 0:01:48.2]} 39... Nd5 {[%clk
0:00:51.5]} 40. Rb1 {[%clk 0:01:42.3]} 40... f6 {[%clk 0:00:51.9]} 41. Bd4
{[%clk 0:01:35.9]} 41... e5 {[%clk 0:00:51.5]} 42. Bc5 {[%clk 0:01:31.7]} 42...
Nc3 {[%clk 0:00:47.1]} 43. Rb3 {[%clk 0:01:31.6]} 43... Rd3 {[%clk 0:00:44.6]}
44. Kh2 {[%clk 0:01:26.2]} 44... e4 {[%clk 0:00:42.2]} 45. Bf8 {[%clk
0:01:07.4]} 45... h5 {[%clk 0:00:41.9]} 46. h4 {[%clk 0:00:50.2]} 46... f5
{[%clk 0:00:35.3]} 47. g3 {[%clk 0:00:50.3]} 47... Rf3 {[%clk 0:00:33.9]} 48.
Kg2 {[%clk 0:00:49.9]} 48... Kf7 {[%clk 0:00:18.3]} 49. Bd6 {[%clk 0:00:45.9]}
49... Nd1 {[%clk 0:00:11.7]} 50. Rxf3 {[%clk 0:00:43.3]} 50... exf3+ {[%clk
0:00:12.6]} 51. Kxf3 {[%clk 0:00:44.2]} 51... Nb2 {[%clk 0:00:12.3]} 52. Kf4
{[%clk 0:00:38.9]} 52... Nc4 {[%clk 0:00:12.4]} 53. Bf8 {[%clk 0:00:38.1]} 53...
Nxa3 {[%clk 0:00:04.3]} 54. Bxa3 {[%clk 0:00:36.9]} 54... Kxg7 {[%clk
0:00:05.2]} 55. Kxf5 {[%clk 0:00:37.2]} 1-0

[Event "Early-Titled-Tuesday-Blitz-April-23-2024"]
[Site "Chess.com"]
[Date "2024.04.23"]
[Round "2"]
[White "KononenkoD"]
[Black "rezamahdavi2008"]
[Result "0-1"]
[WhiteElo "2612"]
[BlackElo "2911"]
[TimeControl "180+1"]
[EndTime "8:18:30 PDT"]
[Termination "rezamahdavi2008 won on time"]

1. d4 {[%clk 0:02:45.3]} 1... Nf6 {[%clk 0:02:57]} 2. c4 {[%clk 0:02:45.2]} 2...
e6 {[%clk 0:02:57.4]} 3. g3 {[%clk 0:02:34.2]} 3... d5 {[%clk 0:02:50]} 4. Nf3
{[%clk 0:02:33.2]} 4... dxc4 {[%clk 0:02:42.8]} 5. Bg2 {[%clk 0:02:30.9]} 5...
Nc6 {[%clk 0:02:40.3]} 6. Qa4 {[%clk 0:02:24.2]} 6... Bb4+ {[%clk 0:02:40]} 7.
Bd2 {[%clk 0:02:22.2]} 7... Nd5 {[%clk 0:02:40.7]} 8. Qb5 {[%clk 0:02:22.2]}
8... Bxd2+ {[%clk 0:02:37.5]} 9. Nbxd2 {[%clk 0:02:19.8]} 9... c3 {[%clk
0:02:38.1]} 10. bxc3 {[%clk 0:02:16.2]} 10... Nxc3 {[%clk 0:02:39]} 11. Qd3
{[%clk 0:02:15.3]} 11... Nd5 {[%clk 0:02:36.8]} 12. O-O {[%clk 0:02:10.1]} 12...
O-O {[%clk 0:02:36.4]} 13. e4 {[%clk 0:02:10.1]} 13... Nf6 {[%clk 0:02:36.9]}
14. Rac1 {[%clk 0:01:58.9]} 14... Qe7 {[%clk 0:02:36.9]} 15. Rfd1 {[%clk
0:01:54.6]} 15... Rd8 {[%clk 0:02:34.2]} 16. Qc3 {[%clk 0:01:53.3]} 16... Bd7
{[%clk 0:02:33.4]} 17. Ne5 {[%clk 0:01:48.4]} 17... Be8 {[%clk 0:02:33]} 18. Nb3
{[%clk 0:01:43.9]} 18... Rac8 {[%clk 0:02:28]} 19. Nxc6 {[%clk 0:01:37.5]} 19...
Bxc6 {[%clk 0:02:27.9]} 20. Nc5 {[%clk 0:01:34.8]} 20... Nd7 {[%clk 0:01:52.1]}
21. d5 {[%clk 0:01:11.9]} 21... Nxc5 {[%clk 0:01:50.8]} 22. Qxc5 {[%clk
0:00:55.2]} 22... Qxc5 {[%clk 0:01:51.4]} 23. Rxc5 {[%clk 0:00:55.3]} 23... Ba4
{[%clk 0:01:44]} 24. Rdc1 {[%clk 0:00:51.7]} 24... c6 {[%clk 0:01:44.4]} 25. Ra5
{[%clk 0:00:49.3]} 25... Bb5 {[%clk 0:01:40.6]} 26. dxe6 {[%clk 0:00:48.5]}
26... a6 {[%clk 0:01:28.8]} 27. exf7+ {[%clk 0:00:47.4]} 27... Kxf7 {[%clk
0:01:29.1]} 28. f4 {[%clk 0:00:47]} 28... Rd2 {[%clk 0:01:28.9]} 29. Ra3 {[%clk
0:00:46]} 29... Rcd8 {[%clk 0:01:28.3]} 30. Bf1 {[%clk 0:00:36.1]} 30... Bxf1
{[%clk 0:01:24.1]} 31. Rxf1 {[%clk 0:00:35.2]} 31... R8d4 {[%clk 0:01:22.8]} 32.
e5 {[%clk 0:00:33.3]} 32... Rb4 {[%clk 0:01:21.1]} 33. Rf2 {[%clk 0:00:33.3]}
33... Rbb2 {[%clk 0:01:19.5]} 34. Rxd2 {[%clk 0:00:32]} 34... Rxd2 {[%clk
0:01:20.4]} 35. Rb3 {[%clk 0:00:30]} 35... b5 {[%clk 0:01:14.5]} 36. Ra3 {[%clk
0:00:28.6]} 36... Ke6 {[%clk 0:01:15.2]} 37. Rxa6 {[%clk 0:00:29]} 37... Kd5
{[%clk 0:01:15.9]} 38. Ra7 {[%clk 0:00:29.2]} 38... Ke4 {[%clk 0:01:12]} 39.
Rxg7 {[%clk 0:00:25.2]} 39... Kf3 {[%clk 0:01:10.9]} 40. h4 {[%clk 0:00:25.7]}
40... c5 {[%clk 0:01:06]} 41. e6 {[%clk 0:00:25.4]} 41... c4 {[%clk 0:00:56.1]}
42. f5 {[%clk 0:00:25.8]} 42... c3 {[%clk 0:00:50.9]} 43. Rc7 {[%clk 0:00:26.1]}
43... b4 {[%clk 0:00:50.6]} 44. f6 {[%clk 0:00:26.1]} 44... Kxg3 {[%clk
0:00:48.9]} 45. Kf1 {[%clk 0:00:22]} 45... Rf2+ {[%clk 0:00:48.6]} 46. Ke1
{[%clk 0:00:21.8]} 46... Rxf6 {[%clk 0:00:49.5]} 47. e7 {[%clk 0:00:21.7]} 47...
Re6+ {[%clk 0:00:48.5]} 48. Kd1 {[%clk 0:00:22.3]} 48... Kxh4 {[%clk 0:00:48.7]}
49. Kc2 {[%clk 0:00:22.8]} 49... h5 {[%clk 0:00:46]} 50. Rc4+ {[%clk 0:00:21.9]}
50... Kg3 {[%clk 0:00:45.8]} 51. Rxb4 {[%clk 0:00:22.3]} 51... Rxe7 {[%clk
0:00:46.5]} 52. Kxc3 {[%clk 0:00:22.9]} 52... h4 {[%clk 0:00:46.1]} 53. a4
{[%clk 0:00:21.3]} 53... h3 {[%clk 0:00:46.7]} 54. Rb8 {[%clk 0:00:19.4]} 54...
Re4 {[%clk 0:00:43.2]} 55. a5 {[%clk 0:00:14.8]} 55... h2 {[%clk 0:00:43.4]} 56.
Rb1 {[%clk 0:00:12.4]} 56... Ra4 {[%clk 0:00:43.2]} 57. Kd3 {[%clk 0:00:12.3]}
57... Rxa5 {[%clk 0:00:43.2]} 58. Ke3 {[%clk 0:00:12.8]} 58... Ra3+ {[%clk
0:00:41.1]} 59. Ke4 {[%clk 0:00:12.5]} 59... Ra2 {[%clk 0:00:38.3]} 0-1

[Event "Early-Titled-Tuesday-Blitz-April-23-2024"]
[Site "Chess.com"]
[Date "2024.04.23"]
[Round "2"]
[White "Artem_Koval"]
[Black "JSPrepz"]
[Result "0-1"]
[WhiteElo "2538"]
[BlackElo "2806"]
[TimeControl "180+1"]
[EndTime "8:18:30 PDT"]
[Termination "JSPrepz won by checkmate"]

1. d4 {[%clk 0:03:00.9]} 1... Nf6 {[%clk 0:02:59.9]} 2. Nf3 {[%clk 0:03:00.4]}
2... c5 {[%clk 0:02:59.5]} 3. d5 {[%clk 0:03:00.6]} 3... b5 {[%clk 0:02:59.6]}
4. c4 {[%clk 0:03:00.9]} 4... g6 {[%clk 0:02:57.9]} 5. cxb5 {[%clk 0:02:58.4]}
5... a6 {[%clk 0:02:58.4]} 6. bxa6 {[%clk 0:02:58]} 6... Bg7 {[%clk 0:02:58.3]}
7. Nc3 {[%clk 0:02:58.5]} 7... O-O {[%clk 0:02:58.5]} 8. e4 {[%clk 0:02:57.7]}
8... Qa5 {[%clk 0:02:58.5]} 9. Bd2 {[%clk 0:02:51]} 9... Bxa6 {[%clk 0:02:57.3]}
10. Bxa6 {[%clk 0:02:47.2]} 10... Qxa6 {[%clk 0:02:58.2]} 11. Qe2 {[%clk
0:02:38.8]} 11... e6 {[%clk 0:02:58.6]} 12. dxe6 {[%clk 0:02:24.9]} 12... fxe6
{[%clk 0:02:58.5]} 13. Qxa6 {[%clk 0:02:11.2]} 13... Nxa6 {[%clk 0:02:59.4]} 14.
Be3 {[%clk 0:02:05.3]} 14... d5 {[%clk 0:02:58.2]} 15. Bg5 {[%clk 0:01:44.4]}
15... Nxe4 {[%clk 0:02:42.5]} 16. Nxe4 {[%clk 0:01:41.6]} 16... dxe4 {[%clk
0:02:43.4]} 17. Nd2 {[%clk 0:01:41.6]} 17... Bxb2 {[%clk 0:02:41.3]} 18. Rb1
{[%clk 0:01:41.2]} 18... Bd4 {[%clk 0:02:19.4]} 19. Nxe4 {[%clk 0:01:36.1]}
19... Nb4 {[%clk 0:02:19.1]} 20. O-O {[%clk 0:01:24.9]} 20... Rxa2 {[%clk
0:02:18.5]} 21. Be7 {[%clk 0:01:19.4]} 21... Rf4 {[%clk 0:02:11.3]} 22. Bxc5
{[%clk 0:01:09.4]} 22... Rxe4 {[%clk 0:00:31.6]} 23. Rxb4 {[%clk 0:01:08.8]}
23... e5 {[%clk 0:00:31.8]} 24. g3 {[%clk 0:00:28.8]} 24... Kg7 {[%clk
0:00:28.1]} 25. Rd1 {[%clk 0:00:16.9]} 25... Bxf2+ {[%clk 0:00:22.1]} 26. Kh1
{[%clk 0:00:10.9]} 26... Rxb4 {[%clk 0:00:21]} 27. Bxb4 {[%clk 0:00:11.8]} 27...
Bd4 {[%clk 0:00:20.6]} 28. Rf1 {[%clk 0:00:07.9]} 28... h5 {[%clk 0:00:21]} 29.
Bf8+ {[%clk 0:00:07.4]} 29... Kg8 {[%clk 0:00:20.4]} 30. Bh6 {[%clk 0:00:04.8]}
30... Re2 {[%clk 0:00:18.8]} 31. Bg5 {[%clk 0:00:04.3]} 31... e4 {[%clk
0:00:17.3]} 32. Rd1 {[%clk 0:00:03.8]} 32... Bf2 {[%clk 0:00:12.2]} 33. Rb1
{[%clk 0:00:01.4]} 33... Kf7 {[%clk 0:00:12]} 34. Rc1 {[%clk 0:00:01.4]} 34...
Ke6 {[%clk 0:00:12.2]} 35. Rc6+ {[%clk 0:00:01.6]} 35... Kf5 {[%clk 0:00:12.6]}
36. Bf4 {[%clk 0:00:02.3]} 36... Kg4 {[%clk 0:00:12.9]} 37. Rxg6+ {[%clk
0:00:02.5]} 37... Kf3 {[%clk 0:00:13.3]} 38. h3 {[%clk 0:00:03.2]} 38... Re1+
{[%clk 0:00:12.6]} 39. Kh2 {[%clk 0:00:03.7]} 39... Bg1+ {[%clk 0:00:13.2]} 40.
Kh1 {[%clk 0:00:04.6]} 40... Bd4+ {[%clk 0:00:10]} 41. Kh2 {[%clk 0:00:04.8]}
41... Bg1+ {[%clk 0:00:08.6]} 42. Kh1 {[%clk 0:00:05.1]} 42... e3 {[%clk
0:00:09.3]} 43. Re6 {[%clk 0:00:04.8]} 43... h4 {[%clk 0:00:05.1]} 44. gxh4
{[%clk 0:00:03.4]} 44... Bf2+ {[%clk 0:00:03.6]} 45. Kh2 {[%clk 0:00:03.6]}
45... Kxf4 {[%clk 0:00:04.2]} 46. h5 {[%clk 0:00:03.2]} 46... Kf3 {[%clk
0:00:04.4]} 47. h6 {[%clk 0:00:02.7]} 47... Bg3# {[%clk 0:00:04.6]} 0-1

[Event "Early-Titled-Tuesday-Blitz-April-23-2024"]
[Site "Chess.com"]
[Date "2024.04.23"]
[Round "2"]
[White "stollenmonster"]
[Black "Kyrko_Gamba"]
[Result "1-0"]
[WhiteElo "2933"]
[BlackElo "2444"]
[TimeControl "180+1"]
[EndTime "8:18:30 PDT"]
[Termination "stollenmonster won on time"]

1. e4 {[%clk 0:02:58.4]} 1... c6 {[%clk 0:02:59.8]} 2. d4 {[%clk 0:02:52]} 2...
d5 {[%clk 0:02:59.7]} 3. e5 {[%clk 0:02:49.7]} 3... c5 {[%clk 0:02:58.2]} 4. c4
{[%clk 0:02:46.1]} 4... Nc6 {[%clk 0:02:54.6]} 5. Nf3 {[%clk 0:02:35.4]} 5... e6
{[%clk 0:02:51.3]} 6. Nc3 {[%clk 0:02:34.4]} 6... cxd4 {[%clk 0:02:51]} 7. Nxd4
{[%clk 0:02:33]} 7... Bb4 {[%clk 0:02:51.4]} 8. Nxc6 {[%clk 0:02:26.5]} 8...
bxc6 {[%clk 0:02:49.7]} 9. Qa4 {[%clk 0:02:24.7]} 9... a5 {[%clk 0:02:49.6]} 10.
a3 {[%clk 0:02:19.7]} 10... Bxc3+ {[%clk 0:02:39.5]} 11. bxc3 {[%clk 0:02:19.5]}
11... Ne7 {[%clk 0:02:40]} 12. Be3 {[%clk 0:02:16.6]} 12... O-O {[%clk 0:02:30]}
13. Bc5 {[%clk 0:02:15.3]} 13... Re8 {[%clk 0:02:19.2]} 14. Bd3 {[%clk
0:02:13.4]} 14... dxc4 {[%clk 0:02:16.4]} 15. Bxc4 {[%clk 0:02:13.3]} 15... Ng6
{[%clk 0:02:09.4]} 16. Bd6 {[%clk 0:02:11]} 16... Bd7 {[%clk 0:01:54.2]} 17. O-O
{[%clk 0:02:07.8]} 17... Qg5 {[%clk 0:01:53.5]} 18. Be2 {[%clk 0:02:00.7]} 18...
Nh4 {[%clk 0:01:28.3]} 19. g3 {[%clk 0:01:56.6]} 19... Nf5 {[%clk 0:01:28.5]}
20. f4 {[%clk 0:01:53.1]} 20... Qg6 {[%clk 0:01:22.3]} 21. Bd3 {[%clk
0:01:51.8]} 21... Qh5 {[%clk 0:01:20.9]} 22. Bc5 {[%clk 0:01:45.4]} 22... Nh6
{[%clk 0:01:13]} 23. Qe4 {[%clk 0:01:42.6]} 23... g6 {[%clk 0:01:07.8]} 24. Kg2
{[%clk 0:01:39.8]} 24... Rab8 {[%clk 0:01:02.8]} 25. Rab1 {[%clk 0:01:34.4]}
25... Nf5 {[%clk 0:00:54.4]} 26. h3 {[%clk 0:01:26.3]} 26... Qh6 {[%clk
0:00:54.1]} 27. g4 {[%clk 0:01:23.6]} 27... Qg7 {[%clk 0:00:47.1]} 28. Kh2
{[%clk 0:01:20.1]} 28... Nh6 {[%clk 0:00:36.8]} 29. Bd6 {[%clk 0:01:15.8]} 29...
Rb5 {[%clk 0:00:28.2]} 30. c4 {[%clk 0:01:11.2]} 30... Rxb1 {[%clk 0:00:21]} 31.
Rxb1 {[%clk 0:01:10.1]} 31... Rc8 {[%clk 0:00:19.5]} 32. Rb7 {[%clk 0:01:04.5]}
32... Be8 {[%clk 0:00:19.6]} 33. Be7 {[%clk 0:01:00.5]} 33... c5 {[%clk
0:00:16.4]} 34. Qe3 {[%clk 0:00:49.2]} 34... Bc6 {[%clk 0:00:15.5]} 35. Ra7
{[%clk 0:00:47]} 35... Nxg4+ {[%clk 0:00:11.5]} 36. hxg4 {[%clk 0:00:44.1]}
36... Qh6+ {[%clk 0:00:12]} 37. Kg3 {[%clk 0:00:39.8]} 37... Qh1 {[%clk
0:00:12.4]} 38. Qf2 {[%clk 0:00:34.1]} 38... Qd1 {[%clk 0:00:12.2]} 39. Be2
{[%clk 0:00:29]} 39... Qb3+ {[%clk 0:00:12.1]} 40. Kh4 {[%clk 0:00:23.1]} 40...
Rb8 {[%clk 0:00:08.8]} 41. Rc7 {[%clk 0:00:21.5]} 41... Be8 {[%clk 0:00:08.4]}
42. Rxc5 {[%clk 0:00:19.9]} 42... Qb1 {[%clk 0:00:08.1]} 43. Kg5 {[%clk
0:00:18.7]} 43... Qh1 {[%clk 0:00:07.4]} 44. Qh4 {[%clk 0:00:17.5]} 44... Qe4
{[%clk 0:00:04.4]} 45. Qh6 {[%clk 0:00:16]} 45... f6+ {[%clk 0:00:03.4]} 46.
Kxf6 {[%clk 0:00:13.8]} 1-0

[Event "Early-Titled-Tuesday-Blitz-April-23-2024"]
[Site "Chess.com"]
[Date "2024.04.23"]
[Round "2"]
[White "Nechitaylo_Nikita"]
[Black "RodTwinkz"]
[Result "1-0"]
[WhiteElo "2328"]
[BlackElo "2677"]
[TimeControl "180+1"]
[EndTime "8:18:31 PDT"]
[Termination "Nechitaylo_Nikita won by resignation"]

1. d4 {[%clk 0:03:00.9]} 1... Nf6 {[%clk 0:02:59.3]} 2. c4 {[%clk 0:03:01.4]}
2... g6 {[%clk 0:02:58.5]} 3. f3 {[%clk 0:03:01.2]} 3... c5 {[%clk 0:02:58.7]}
4. d5 {[%clk 0:03:01.1]} 4... Bg7 {[%clk 0:02:58.8]} 5. e4 {[%clk 0:03:01.7]}
5... O-O {[%clk 0:02:59.1]} 6. Nc3 {[%clk 0:03:02.3]} 6... e6 {[%clk 0:02:58.4]}
7. Nge2 {[%clk 0:03:00.3]} 7... a6 {[%clk 0:02:57.7]} 8. a4 {[%clk 0:02:57.4]}
8... exd5 {[%clk 0:02:57.5]} 9. cxd5 {[%clk 0:02:58.3]} 9... d6 {[%clk
0:02:57.3]} 10. Ng3 {[%clk 0:02:52.4]} 10... Nbd7 {[%clk 0:02:55.7]} 11. Be3
{[%clk 0:02:52.2]} 11... Re8 {[%clk 0:02:54.9]} 12. Be2 {[%clk 0:02:44.8]} 12...
Rb8 {[%clk 0:02:43.9]} 13. O-O {[%clk 0:02:44]} 13... h5 {[%clk 0:02:43.2]} 14.
h4 {[%clk 0:02:33.7]} 14... Nh7 {[%clk 0:02:37.3]} 15. Bf2 {[%clk 0:01:52.8]}
15... Bf6 {[%clk 0:02:08.2]} 16. f4 {[%clk 0:01:46.1]} 16... Bxh4 {[%clk
0:02:05.4]} 17. e5 {[%clk 0:01:18.6]} 17... dxe5 {[%clk 0:02:00.6]} 18. f5
{[%clk 0:01:16.7]} 18... Ndf6 {[%clk 0:01:51.1]} 19. fxg6 {[%clk 0:01:12.1]}
19... fxg6 {[%clk 0:01:50.5]} 20. Qc2 {[%clk 0:00:59.1]} 20... Kg7 {[%clk
0:01:23.8]} 21. Bd3 {[%clk 0:00:51.3]} 21... Nf8 {[%clk 0:01:03.2]} 22. Nf5+
{[%clk 0:00:21.6]} 22... gxf5 {[%clk 0:00:59.8]} 23. Bxh4 {[%clk 0:00:21.9]}
23... e4 {[%clk 0:00:59.8]} 24. Nxe4 {[%clk 0:00:18.8]} 24... N8h7 {[%clk
0:00:23.6]} 25. Nxf6 {[%clk 0:00:18.3]} 25... Nxf6 {[%clk 0:00:22.4]} 26. Bxf5
{[%clk 0:00:19]} 26... Rf8 {[%clk 0:00:22.1]} 27. Qd2 {[%clk 0:00:10.5]} 27...
Bxf5 {[%clk 0:00:18]} 28. Rxf5 {[%clk 0:00:11.4]} 28... Qe8 {[%clk 0:00:14.3]}
29. Raf1 {[%clk 0:00:07]} 29... Qg6 {[%clk 0:00:09.7]} 30. Rxf6 {[%clk
0:00:05.4]} 30... Rxf6 {[%clk 0:00:10.5]} 31. Rxf6 {[%clk 0:00:05.7]} 31... Qg4
{[%clk 0:00:09.6]} 32. Qg5+ {[%clk 0:00:05.1]} 32... Qxg5 {[%clk 0:00:09.1]} 33.
Bxg5 {[%clk 0:00:06]} 33... Rd8 {[%clk 0:00:09.1]} 34. Rg6+ {[%clk 0:00:06.7]}
34... Kxg6 {[%clk 0:00:08.9]} 35. Bxd8 {[%clk 0:00:07.6]} 35... b5 {[%clk
0:00:09.1]} 36. axb5 {[%clk 0:00:07.6]} 36... axb5 {[%clk 0:00:10]} 37. Be7
{[%clk 0:00:05.8]} 37... c4 {[%clk 0:00:09.4]} 38. Kf2 {[%clk 0:00:05.5]} 38...
Kf5 {[%clk 0:00:09.2]} 39. d6 {[%clk 0:00:04.9]} 39... Ke6 {[%clk 0:00:09.2]}
40. Ke3 {[%clk 0:00:05.5]} 40... h4 {[%clk 0:00:06.9]} 41. Kd4 {[%clk
0:00:05.7]} 41... Kd7 {[%clk 0:00:06.4]} 42. Kc3 {[%clk 0:00:04.9]} 42... Kc6
{[%clk 0:00:05.3]} 43. Kb4 {[%clk 0:00:05]} 43... Kd7 {[%clk 0:00:05.1]} 44.
Kxb5 {[%clk 0:00:05.2]} 1-0